fUSD/lending_fUSD_20241222
["ID","MTS","AMOUNT","RATE_DAILY","PERIOD"]
[346312586,1734882688580,-5506.12,0.00023835,2]
[346312587,1734882688590,-587.04,0.00023835,2]
[346312588,1734882688602,-14033.87,0.00023835,2]
[346312589,1734882688612,-591.67,0.00023835,2]
[346312590,1734882688621,-500.0,0.00023835,2]
[346312591,1734882688632,-1258.01,0.00023835,2]
[346312592,1734882688641,-653.93,0.00023835,2]
[346312593,1734882688651,-500.0,0.00023835,2]
[346312594,1734882688660,-5221.22,0.00023835,2]
[346312595,1734882688669,-8085.7,0.00023835,2]
[346312596,1734882688679,-760.09,0.00023835,2]
[346312597,1734882688689,-46379.84,0.00023835,2]
[346312598,1734882688699,-1378.49,0.00023835,2]
[346312599,1734882688708,-678.04,0.00023835,2]
[346312600,1734882688719,-500.0,0.00023835,2]
[346312601,1734882688728,-500.0,0.00023835,2]
[346312602,1734882688738,-712.94,0.00023835,2]
[346312603,1734882688748,-1278.71,0.00023835,2]
[346312604,1734882688757,-4066.18,0.00023835,2]
[346312605,1734882688768,-2890.74,0.00023835,2]
[346312606,1734882688779,-874.23,0.00023835,2]
[346312607,1734882688788,-5923.87,0.00023835,2]
[346312608,1734882688799,-1186.46,0.00023835,2]
[346312609,1734882688808,-1493.85,0.00023835,2]
[346312610,1734882688818,-1031.92,0.00023835,2]
[346312611,1734882688828,-8469.63,0.00023835,2]
[346312612,1734882688838,-500.0,0.00023835,2]
[346312613,1734882688849,-75754.11,0.00023835,2]
[346312614,1734882688859,-633.9,0.00023835,2]
[346312615,1734882688868,-5442.95,0.00023835,2]
[346312616,1734882688878,-573.44,0.00023835,2]
[346312617,1734882688888,-852.03,0.00023835,2]
[346312618,1734882688898,-722.78,0.00023835,2]
[346312619,1734882688908,-2305.83,0.00023835,2]
[346312620,1734882688918,-649.45,0.00023835,2]
[346312621,1734882688929,-21897.76,0.00023835,2]
[346312622,1734882688938,-614.39,0.00023835,2]
[346312623,1734882688948,-500.0,0.00023835,2]
[346312624,1734882688958,-13534.81,0.00023835,2]
[346312625,1734882688967,-1053.75,0.00023835,2]
[346312626,1734882688976,-756.25,0.00023835,2]
[346312627,1734882688986,-2729.96,0.00023835,2]
[346312628,1734882688995,-1034.09,0.00023835,2]
[346312629,1734882689004,-3043.67,0.00023835,2]
[346312630,1734882689014,-560.8,0.00023835,2]
[346312631,1734882689024,-8326.5,0.00023835,2]
[346312632,1734882689034,-6366.27,0.00023835,2]
[346312633,1734882689044,-718.4,0.00023835,2]
[346312634,1734882689053,-806.65,0.00023835,2]
[346312635,1734882689063,-1342.83,0.00023835,2]
[346312636,1734882689073,-5230.13,0.00023835,2]
[346312637,1734882689083,-631.9950606,0.00023835,2]
[346312638,1734882689092,-20409.72,0.00023835,2]
[346312639,1734882689102,-993.52,0.00023835,2]
[346312640,1734882689113,-674.06,0.00023835,2]
[346312641,1734882689126,-1389.87,0.00023835,2]
[346312642,1734882689136,-2409.67,0.00023835,2]
[346312643,1734882689145,-593.07,0.00023835,2]
[346312644,1734882689156,-1573.66,0.00023835,2]
[346312645,1734882689166,-3466.01,0.00023835,2]
[346312646,1734882689176,-704.01,0.00023835,2]
[346312647,1734882689185,-7756.13,0.00023835,2]
[346312648,1734882689196,-1922.61,0.00023835,2]
[346312649,1734882689206,-3988.68,0.00023835,2]
[346312650,1734882689216,-1544.59,0.00023835,2]
[346312651,1734882689225,-713.2,0.00023835,2]
[346312652,1734882689235,-27918.05,0.00023835,2]
[346312653,1734882689244,-1242.79,0.00023835,2]
[346312654,1734882689254,-9752.75,0.00023835,2]
[346312655,1734882689263,-26380.88,0.00023835,2]
[346312656,1734882689273,-613.49,0.00023835,2]
[346312657,1734882689283,-1503.36,0.00023835,2]
[346312658,1734882689292,-500.0,0.00023835,2]
[346312659,1734882689301,-4866.94,0.00023835,2]
[346312660,1734882689311,-500.0,0.00023835,2]
[346312661,1734882689321,-1043.29,0.00023835,2]
[346312662,1734882689331,-554.99,0.00023835,2]
[346312663,1734882689342,-894.44,0.00023835,2]
[346312664,1734882689352,-1890.55,0.00023835,2]
[346312665,1734882689361,-788.97,0.00023835,2]
[346312666,1734882689372,-1519.25,0.00023835,2]
[346312667,1734882689382,-500.0,0.00023835,2]
[346312668,1734882689391,-1475.0,0.00023836,2]
[346312669,1734882689403,-851.0,0.00023836,2]
[346312670,1734882689412,-1000.0,0.0002386,20]
[346312671,1734882689422,-301.25015613,0.0002386,3]
[346312672,1734882689432,-8000.0,0.00023874,11]
[346312673,1734882689442,-1500.0,0.00023879,7]
[346312674,1734882689452,-151.0,0.0002388,7]
[346312675,1734882689463,-151.0,0.0002388,7]
[346312676,1734882689472,-151.0,0.0002388,7]
[346312677,1734882689483,-5005.55957651,0.0002389,2]
[346312678,1734882689493,-5000.0,0.000239,2]
[346312679,1734882689504,-5000.04035994,0.000239,2]
[346312680,1734882689514,-290.76092309,0.000239,2]
[346312681,1734882689523,-31663.11811873,0.000239,2]
[346312682,1734882689533,-73450.0,0.000239,7]
[346312683,1734882689543,-9962.47769114,0.000239,2]
[346312684,1734882689554,-41584.50918479,0.000239,2]
[346312685,1734882689565,-4267.77,0.00023958,7]
[346312686,1734882689576,-4267.77,0.00023958,7]
[346312687,1734882689587,-1000.0,0.0002398,20]
[346312688,1734882689598,-154290.57246463,0.0002398,3]
[346312689,1734882689607,-269559.21909243,0.0002398,3]
[346312690,1734882689616,-243645.53438047,0.0002398,3]
[346312691,1734882689626,-1108.65437546,0.0002398,3]
[346312692,1734882689635,-1500.0,0.00023994,7]
[346312693,1734882689645,-4900.31782893,0.00023998,2]
[346312694,1734882689654,-39436.53102267,0.00024,3]
[346312695,1734882689664,-25535.84241533,0.00024,4]
[346312696,1734882689674,-268040.53810392,0.00024,2]
[346312697,1734882689683,-32329.05492091,0.00024,2]
[346312698,1734882689693,-41791.70018135,0.00024,2]
[346312699,1734882689702,-975.38622575,0.00024,2]
[346312700,1734882689712,-4000.0,0.00024,2]
[346312701,1734882689722,-7532.52267197,0.00024,2]
[346312702,1734882689731,-56494.99486462,0.00024,2]
[346312703,1734882689740,-3620.10957501,0.00024,25]
[346312704,1734882689749,-1544141.78754983,0.00024,5]
[346312705,1734882689759,-179945.56807821,0.00024,2]
[346312706,1734882689768,-314703.23460736,0.00024,120]
[346312707,1734882689779,-229599.36081948,0.00024,30]
[346312708,1734882689789,-1149.57,0.00024,31]
[346312709,1734882689799,-1149.57,0.00024,31]
[346312710,1734882689809,-1149.57,0.00024,31]
[346312711,1734882689818,-1149.57,0.00024,31]
[346312712,1734882689828,-1149.57,0.00024,31]
[346312713,1734882689837,-1149.57,0.00024,31]
[346312714,1734882689848,-1149.57,0.00024,31]
[346312715,1734882689857,-1149.57,0.00024,31]
[346312716,1734882689867,-1149.57,0.00024,31]
[346312717,1734882689877,-1149.57,0.00024,31]
[346312718,1734882689887,-1149.57,0.00024,31]
[346312719,1734882689897,-1149.57,0.00024,31]
[346312720,1734882689907,-1149.57,0.00024,31]
[346312721,1734882689917,-1149.57,0.00024,31]
[346312722,1734882689927,-1149.57,0.00024,31]
[346312723,1734882689937,-1149.57,0.00024,31]
[346312724,1734882689947,-150.52847429,0.00024,30]
[346312725,1734882689957,-33677.29,0.00024,120]
[346312726,1734882689967,-539082.92483497,0.00024,5]
[346312727,1734882689977,-30010.44189565,0.00024,2]
[346312728,1734882689987,-62368.47285611,0.00024,2]
[346312729,1734882689997,-6453.78,0.00024,30]
[346312730,1734882690007,-23193607.58255229,0.00024,5]
[346312731,1734882690394,-500.0,0.00019178,2]
[346312732,1734882690404,-454.525,0.00019452,2]
[346312733,1734882690993,-579.64,0.00019178,2]
[346312734,1734882691003,-108.30347,0.00019178,2]
[346312735,1734882691023,-391.69653,0.00019178,2]
[346312736,1734882691032,-500.0,0.00019178,2]
[346312737,1734882691042,-45.475,0.00019452,2]
[346312738,1734882691051,-232.82847,0.00019452,2]
[346312739,1734882691365,-493.7,0.00019178,2]
[346312740,1734882691374,-1097.90091734,0.0001929,2]
[346312741,1734882691384,-1097.90091734,0.0001937,2]
[346312742,1734882691394,-1097.90091734,0.0001937,2]
[346312743,1734882691403,-267.17153,0.00019452,2]
[346312744,1734882691412,-500.0,0.00019726,2]
[346312745,1734882691422,-500.0,0.00019726,2]
[346312746,1734882691431,-500.0,0.0002,2]
[346312747,1734882691441,-228.0,0.0002,2]
[346312748,1734882691450,-500.0,0.0002,2]
[346312749,1734882691459,-167.0,0.0002,2]
[346312750,1734882691469,-500.0,0.00020273,2]
[346312751,1734882691479,-500.0,0.00020273,2]
[346312752,1734882691487,-87918.29158693,0.000205,3]
[346312753,1734882729323,157.41,0.00010137,2]
[346312754,1734882752341,250.0,0.0002,120]
[346312762,1734882840739,-250.0,0.00022,120]
[346312763,1734882840776,-500.0,0.00023,120]
[346312764,1734882840817,-520.0,0.00024,120]
[346312765,1734882840856,-1107.40364025,0.000245,60]
[346312766,1734882840884,-150.0,0.00024536,120]
[346312767,1734882840912,-150.5,0.0002463,120]
[346312768,1734882840939,-150.5,0.0002463,120]
[346312769,1734882840965,-150.5,0.0002463,120]
[346312770,1734882840992,-256.0,0.0002463,120]
[346312771,1734882841017,-256.0,0.0002463,120]
[346312772,1734882841043,-150.5,0.0002464,120]
[346312773,1734882841068,-150.5,0.0002464,120]
[346312774,1734882841092,-150.5,0.0002464,120]
[346312775,1734882841116,-150.5,0.0002464,120]
[346312776,1734882841141,-256.0,0.0002464,120]
[346312777,1734882841170,-256.0,0.0002464,120]
[346312778,1734882841196,-256.0,0.0002464,120]
[346312779,1734882841222,-150.5,0.0002465,120]
[346312780,1734882841248,-150.5,0.0002465,120]
[346312781,1734882841273,-150.5,0.0002465,120]
[346312782,1734882841301,-150.5,0.0002465,120]
[346312783,1734882841325,-150.5,0.0002465,120]
[346312784,1734882841349,-150.5,0.0002465,120]
[346312785,1734882841377,-256.0,0.0002465,120]
[346312786,1734882841402,-256.0,0.0002465,120]
[346312787,1734882841427,-256.0,0.0002465,120]
[346312788,1734882841453,-256.0,0.0002465,120]
[346312789,1734882841485,-193.35,0.0002467,120]
[346312790,1734882841692,-176.18,0.0002467,120]
[346312791,1734882841721,-150.5,0.0002468,120]
[346312792,1734882841748,-258.16,0.0002468,120]
[346312793,1734882841773,-261.15,0.0002468,120]
[346312794,1734882841798,-152.26,0.0002468,120]
[346312795,1734882841824,-150.5,0.0002469,120]
[346312796,1734882841850,-2000.0,0.000247,120]
[346312797,1734882841879,-20210.01867599,0.00024899,120]
[346312798,1734882841909,-5795.16981182,0.0002496,120]
[346312799,1734882841934,-150.0,0.00024968,120]
[346312800,1734882841960,-1001.44363612,0.00025,60]
[346312801,1734882841991,-8001.59000491,0.00025,120]
[346312802,1734882842015,-30984.04398793,0.00025,120]
[346312803,1734882842039,-5000.0,0.00025,120]
[346312804,1734882842064,-202.09767107,0.00025,120]
[346312805,1734882842090,-4239.60219325,0.00025,90]
[346312806,1734882842115,-2000.0,0.00025,120]
[346312807,1734882842140,-10000.0,0.00025,120]
[346312808,1734882842169,-10000.0,0.00025,120]
[346312809,1734882842195,-10000.0,0.00025,120]
[346312810,1734882842222,-10000.0,0.00025,120]
[346312811,1734882842247,-46195.9981906,0.00025,120]
[346312812,1734882842274,-150.0,0.00025053,120]
[346312813,1734882842300,-150.0,0.00025132,120]
[346312814,1734882842330,-150.0,0.0002523,120]
[346312815,1734882842362,-1140000.0,0.0002555,40]
[346312816,1734882842392,-2000.0,0.00026,120]
[346312817,1734882842417,-2048.66529434,0.00026,120]
[346312818,1734882842441,-5760.0,0.00026,120]
[346312819,1734882842468,-1000.0,0.00026,120]
[346312820,1734882842493,-1000.0,0.00026,120]
[346312821,1734882842518,-1000.0,0.00026,120]
[346312822,1734882842543,-1000.0,0.00026,120]
[346312823,1734882842568,-10000.0,0.00026,120]
[346312824,1734882842593,-3727754.99214843,0.00026,120]
[346312825,1734882842619,-150.0,0.00026008,120]
[346312826,1734882842646,-150.0,0.00026114,120]
[346312827,1734882842672,-150.0,0.00026235,120]
[346312828,1734882842698,-150.0,0.00026265,120]
[346312829,1734882842725,-150.0,0.00026307,120]
[346312830,1734882842750,-150.0,0.00026323,120]
[346312831,1734882842775,-150.0,0.00026327,120]
[346312832,1734882842803,-150.0,0.00026416,120]
[346312833,1734882842828,-150.0,0.00026478,120]
[346312834,1734882842854,-150.0,0.00026644,120]
[346312835,1734882842884,-150.0,0.00026802,120]
[346312836,1734882842910,-150.0,0.00026865,120]
[346312837,1734882842934,-315000.0,0.0002688,70]
[346312838,1734882842959,-800.0,0.00026986,120]
[346312839,1734882842985,-800.0,0.00026986,120]
[346312840,1734882843010,-800.0,0.00026986,120]
[346312841,1734882843036,-800.0,0.00026986,120]
[346312842,1734882843062,-800.0,0.00026986,120]
[346312843,1734882843087,-383.46,0.00026986,120]
[346312844,1734882843112,-800.0,0.00026986,120]
[346312845,1734882843137,-48291.79007467,0.00026998,120]
[346312846,1734882843165,-678.49484321,0.00027,120]
[346312847,1734882843192,-2000.0,0.00027,120]
[346312848,1734882843219,-2000.0,0.00027,120]
[346312849,1734882843248,-5243.08,0.00027,120]
[346312850,1734882843275,-3815.35030567,0.00027,60]
[346312851,1734882843301,-150.0,0.00027,120]
[346312852,1734882843328,-820.68082,0.00027,120]
[346312853,1734882843354,-222.22222,0.00027,120]
[346312854,1734882843380,-150.0,0.00027,120]
[346312855,1734882843405,-16000.0,0.00027,120]
[346312856,1734882843431,-2235.3368495,0.00027,120]
[346312857,1734882843458,-150.0,0.00027,120]
[346312858,1734882843488,-1000.0,0.00027,120]
[346312859,1734882843516,-1000.0,0.00027,120]
[346312860,1734882843542,-1000.0,0.00027,120]
[346312861,1734882843569,-10017.88637791,0.00027,120]
[346312862,1734882843596,-5767.5023008,0.00027,120]
[346312863,1734882843622,-20000.0,0.00027,120]
[346312864,1734882843647,-60000.0,0.00027,120]
[346312865,1734882843674,-150.0,0.00027,120]
[346312866,1734882843701,-150.0,0.00027,120]
[346312867,1734882843727,-150.0,0.00027,120]
[346312868,1734882843753,-150.0,0.00027,120]
[346312869,1734882843785,-150.0,0.00027,120]
[346312870,1734882843815,-150.0,0.00027,120]
[346312871,1734882843841,-150.0,0.00027,120]
[346312872,1734882843867,-150.0,0.00027,120]
[346312873,1734882843897,-150.0,0.00027,120]
[346312874,1734882843922,-150.0,0.00027,120]
[346312875,1734882843953,-150.0,0.00027,120]
[346312876,1734882843981,-150.0,0.00027,120]
[346312877,1734882844166,-150.0,0.00027,120]
[346312878,1734882844195,-150.0,0.00027,120]
[346312879,1734882844221,-150.0,0.00027,120]
[346312880,1734882844251,-150.0,0.00027,120]
[346312881,1734882844276,-150.0,0.00027,120]
[346312882,1734882844303,-150.0,0.00027,120]
[346312883,1734882844331,-150.0,0.00027,120]
[346312884,1734882844357,-150.0,0.00027,120]
[346312885,1734882844385,-150.0,0.00027,120]
[346312886,1734882844411,-150.0,0.00027,120]
[346312887,1734882844436,-150.0,0.00027,120]
[346312888,1734882844462,-150.0,0.00027,120]
[346312889,1734882844488,-150.0,0.00027,120]
[346312890,1734882844513,-150.0,0.00027,120]
[346312891,1734882844539,-150.0,0.00027,120]
[346312892,1734882844565,-150.0,0.00027,120]
[346312893,1734882844591,-150.0,0.00027,120]
[346312894,1734882844617,-150.0,0.00027,120]
[346312895,1734882844644,-150.0,0.00027,120]
[346312896,1734882844670,-150.0,0.00027,120]
[346312897,1734882844695,-150.0,0.00027,120]
[346312898,1734882844722,-150.0,0.00027,120]
[346312899,1734882844748,-150.0,0.00027,120]
[346312900,1734882844774,-150.0,0.00027,120]
[346312901,1734882844800,-150.0,0.00027,120]
[346312902,1734882844824,-150.0,0.00027,120]
[346312903,1734882844849,-150.0,0.00027,120]
[346312904,1734882844875,-150.0,0.00027,120]
[346312905,1734882844902,-150.0,0.00027,120]
[346312906,1734882844930,-150.0,0.00027,120]
[346312907,1734882844956,-150.0,0.00027,120]
[346312908,1734882844985,-150.0,0.00027,120]
[346312909,1734882845011,-150.0,0.00027,120]
[346312910,1734882845036,-150.0,0.00027,120]
[346312911,1734882845062,-150.0,0.00027,120]
[346312912,1734882845087,-150.0,0.00027,120]
[346312913,1734882845112,-150.0,0.00027,120]
[346312914,1734882845137,-150.0,0.00027,120]
[346312915,1734882845164,-150.0,0.00027,120]
[346312916,1734882845189,-150.0,0.00027,120]
[346312917,1734882845215,-150.0,0.00027,120]
[346312918,1734882845244,-150.0,0.00027,120]
[346312919,1734882845268,-150.0,0.00027,120]
[346312920,1734882845293,-150.0,0.00027,120]
[346312921,1734882845318,-150.0,0.00027,120]
[346312922,1734882845342,-150.0,0.00027,120]
[346312923,1734882845367,-150.0,0.00027,120]
[346312924,1734882845390,-150.0,0.00027,120]
[346312925,1734882845415,-150.0,0.00027,120]
[346312926,1734882845439,-150.0,0.00027,120]
[346312927,1734882845463,-150.0,0.00027,120]
[346312928,1734882845489,-150.0,0.00027,120]
[346312929,1734882845514,-150.0,0.00027,120]
[346312930,1734882845540,-150.0,0.00027,120]
[346312931,1734882845565,-150.0,0.00027,120]
[346312932,1734882845590,-150.0,0.00027,120]
[346312933,1734882845615,-150.0,0.00027,120]
[346312934,1734882845640,-150.0,0.00027,120]
[346312935,1734882845665,-150.0,0.00027,120]
[346312936,1734882845691,-150.0,0.00027,120]
[346312937,1734882845716,-150.0,0.00027,120]
[346312938,1734882845743,-150.0,0.00027,120]
[346312939,1734882845769,-150.0,0.00027,120]
[346312940,1734882845794,-150.0,0.00027,120]
[346312941,1734882845820,-150.0,0.00027,120]
[346312942,1734882845846,-150.0,0.00027,120]
[346312943,1734882845871,-150.0,0.00027,120]
[346312944,1734882845897,-150.0,0.00027,120]
[346312945,1734882845922,-150.0,0.00027,120]
[346312946,1734882845948,-247.97258064,0.00027,120]
[346312947,1734882845974,-9485.63094587,0.00027,120]
[346312948,1734882846003,-10000.0,0.00027,120]
[346312949,1734882846030,-150.0,0.00027,120]
[346312950,1734882846056,-150.0,0.00027,120]
[346312951,1734882846083,-40000.0,0.0002712,60]
[346312952,1734882846108,-800.0,0.00027123,120]
[346312953,1734882846133,-800.0,0.00027123,120]
[346312954,1734882846160,-800.0,0.00027123,120]
[346312955,1734882846186,-119017.49079358,0.000272,44]
[346312956,1734882846212,-119017.49079358,0.000272,44]
[346312957,1734882846246,-498.817911,0.00027257,120]
[346312958,1734882846271,-2000.0,0.00027257,120]
[346312959,1734882846294,-153.498215,0.00027257,120]
[346312960,1734882846321,-500.0,0.00027257,120]
[346312961,1734882846346,-299.335497,0.00027257,120]
[346312962,1734882846420,-115480.33421686,0.0002736,120]
[346312963,1734882850142,-119017.49079358,0.000272,44]
[346312964,1734882850172,-119017.49079358,0.000272,44]
[346312965,1734882850246,-60535.07170968,0.0002736,120]
[346312966,1734882850273,-3276.71,0.00027397,120]
[346312967,1734882850298,-3276.71,0.00027397,120]
[346312968,1734882850323,-3276.71,0.00027397,120]
[346312969,1734882850348,-3276.71,0.00027397,120]
[346312970,1734882850373,-3276.71,0.00027397,120]
[346312971,1734882850414,-3276.71,0.00027397,120]
[346312972,1734882850456,-3276.71,0.00027397,120]
[346312973,1734882850496,-3276.71,0.00027397,120]
[346312974,1734882850540,-3276.71,0.00027397,120]
[346312975,1734882850583,-3276.71,0.00027397,120]
[346312976,1734882850627,-3276.71,0.00027397,120]
[346312977,1734882850670,-3276.71,0.00027397,120]
[346312978,1734882850706,-3276.71,0.00027397,120]
[346312979,1734882850741,-3276.71,0.00027397,120]
[346312980,1734882850777,-3276.71,0.00027397,120]
[346312981,1734882850813,-3276.71,0.00027397,120]
[346312982,1734882850849,-3276.71,0.00027397,120]
[346312983,1734882850892,-3276.71,0.00027397,120]
[346312984,1734882850945,-3276.71,0.00027397,120]
[346312985,1734882851001,-3276.71,0.00027397,120]
[346312986,1734882851051,-3276.71,0.00027397,120]
[346312987,1734882851088,-3276.71,0.00027397,120]
[346312988,1734882851126,-3276.71,0.00027397,120]
[346312989,1734882851166,-3276.73974263,0.00027397,120]
[346312990,1734882851202,-200.0,0.00027397,60]
[346312991,1734882851240,-200.0,0.000275,120]
[346312992,1734882851276,-153.85228,0.000275,120]
[346312993,1734882851308,-150.0,0.000275,120]
[346312994,1734882851333,-150.0,0.00027507,120]
[346312995,1734882851358,-150.0,0.0002753,120]
[346312996,1734882851389,-150.0,0.0002757,120]
[346312997,1734882851428,-222.22222,0.000276,120]
[346312998,1734882851458,-150.0,0.000276,120]
[346312999,1734882851493,-20000.0,0.000276,60]
[346313000,1734882851524,-150.0,0.000277,120]
[346313001,1734882851552,-150.0,0.000278,120]
[346313002,1734882851581,-4013.78156451,0.0002788,120]
[346313003,1734882851611,-150.0,0.00027893,120]
[346313004,1734882851642,-150.0,0.00027978,120]
[346313005,1734882851672,-2000.0,0.00028,120]
[346313006,1734882851703,-10000.0,0.00028,120]
[346313007,1734882851732,-150.0,0.00028,120]
[346313008,1734882851763,-1000.0,0.00028,120]
[346313009,1734882851789,-1000.0,0.00028,120]
[346313010,1734882851814,-1000.0,0.00028,120]
[346313011,1734882851840,-150.0,0.00028125,120]
[346313012,1734882851866,-150.0,0.00028131,120]
[346313013,1734882851891,-150.0,0.000282,120]
[346313014,1734882851916,-13541.10212189,0.00028297,120]
[346313015,1734882851942,-500.0,0.00028412,120]
[346313016,1734882851966,-225.07352,0.000285,120]
[346313017,1734882851994,-150.0,0.00028598,120]
[346313018,1734882852019,-150.0,0.000286,120]
[346313019,1734882852046,-2000.0,0.00028757,120]
[346313020,1734882852070,-228.99391,0.000288,120]
[346313021,1734882852094,-13839.31776356,0.0002888,120]
[346313022,1734882852119,-1000.0,0.00029,120]
[346313023,1734882852143,-6300.0,0.00029,60]
[346313024,1734882852172,-150.0,0.000294,120]
[346313025,1734882852198,-500.0,0.00029566,120]
[346313026,1734882852224,-360.549,0.0002989,120]
[346313027,1734882852757,-1046.40443103,0.0003,120]
[346313028,1734882852783,-271.3251949,0.0003,120]
[346313029,1734882852808,-2000.0,0.0003,120]
[346313030,1734882852832,-10000.0,0.0003,120]
[346313031,1734882852856,-10000.0,0.0003,120]
[346313032,1734882852881,-10000.0,0.0003,120]
[346313033,1734882852905,-10000.0,0.0003,120]
[346313034,1734882852930,-10000.0,0.0003,120]
[346313035,1734882852954,-5484.50922777,0.0003,120]
[346313036,1734882852980,-15000.0,0.0003,60]
[346313037,1734882853007,-151.0,0.0003,120]
[346313038,1734882853031,-402.45497048,0.0003,120]
[346313039,1734882853055,-9707.32451304,0.0003,120]
[346313040,1734882853079,-22990.96984613,0.0003,120]
[346313041,1734882853103,-252.03333333,0.0003,120]
[346313042,1734882853127,-21440.23987583,0.0003,120]
[346313043,1734882853153,-6504.0,0.0003,120]
[346313044,1734882853178,-46850.0,0.0003,120]
[346313045,1734882853203,-19434.83341155,0.0003,120]
[346313046,1734882853228,-1200.0,0.0003,120]
[346313047,1734882853255,-200.49484563,0.00030137,60]
[346313048,1734882853406,119017.49079358,0.000272,44]
[346313049,1734882868782,-142393.21700052,0.00027314,120]
[346313050,1734882868807,-5053.00857017,0.00027314,60]
[346313051,1734882868831,-10000.0,0.00027314,120]
[346313052,1734882868856,-476777.56213032,0.00027314,120]
[346313053,1734882868881,-699.34702016,0.00027314,120]
[346313054,1734882868907,-891.0,0.00027314,120]
[346313055,1734882868931,-13791.66426134,0.00027314,120]
[346313056,1734882868956,-751.2188773,0.00027314,120]
[346313057,1734882868980,-1000.0,0.00027314,60]
[346313058,1734882869009,-1000.0,0.00027314,60]
[346313059,1734882869035,-8049.82686558,0.00027314,120]
[346313060,1734882869061,-4732.42736402,0.00027314,120]
[346313061,1734882869086,-240.42938373,0.00027314,90]
[346313062,1734882869111,-577790.5735522,0.00027314,120]
[346313063,1734882869135,-1488.70225463,0.00027314,120]
[346313064,1734882869162,-7113.15745415,0.00027314,120]
[346313065,1734882869187,-2000.0,0.00027314,120]
[346313066,1734882869211,-3800.0,0.00027314,120]
[346313067,1734882869237,-4130.04956019,0.00027314,120]
[346313068,1734882869263,-400000.0,0.00027314,60]
[346313069,1734882869286,-72827.0638133,0.00027314,50]
[346313070,1734882869311,-61895.24735978,0.00027314,60]
[346313071,1734882869337,-56834.1088931,0.00027314,60]
[346313072,1734882869361,-16132.60853121,0.00027314,120]
[346313073,1734882869386,-18335.65952048,0.00027314,60]
[346313074,1734882869410,-22069.53168337,0.00027314,45]
[346313075,1734882869434,-15691.19369516,0.00027314,120]
[346313076,1734882869458,-17071.12412655,0.00027314,120]
[346313077,1734882869482,-17314.53089828,0.00027314,120]
[346313078,1734882869507,-144367.10762766,0.00027314,60]
[346313079,1734882869531,-200.71636546,0.00027314,60]
[346313080,1734882869555,-43916.50018014,0.00027314,120]
[346313081,1734882869578,-9731.601988,0.00027314,120]
[346313082,1734882869603,-620.09129349,0.00027314,120]
[346313083,1734882869628,-10000.0,0.00027314,120]
[346313084,1734882869653,-10000.0,0.00027314,120]
[346313085,1734882869680,-10000.0,0.00027314,120]
[346313086,1734882869704,-10000.0,0.00027314,120]
[346313087,1734882869728,-853.31859958,0.00027314,120]
[346313088,1734882869753,-600.74582808,0.00027314,120]
[346313089,1734882869778,-10000.0,0.00027314,120]
[346313090,1734882869802,-10000.0,0.00027314,120]
[346313091,1734882869827,-10000.0,0.00027314,120]
[346313092,1734882869853,-10000.0,0.00027314,120]